[Event "Titled Tuesday Blitz April 19 Early 2022"]
[White "Vokhidov, Shamsiddin"]
[Black "Baches Garcia, Guillermo"]
[WhiteFideId "14204223"]
[BlackFideId "2209764"]
[WhiteElo "2611"]
[BlackElo "2503"]
[Result "1-0"]
[Round "01"]
[TimeControl "180+1"]
[Date "2022.04.19"]
[WhiteClock "0:00:17"]
[BlackClock "0:00:03"]

1. e4 {[%clk 0:03:00]}  c5 {[%clk 0:02:58]} 2. Nf3 {[%clk 0:03:01]}  d6 {[%clk 0:02:59]} 3. d4 {[%clk 0:02:59]}  cxd4 {[%clk 0:03:00]} 4. Nxd4 {[%clk 0:03:00]}  Nf6 {[%clk 0:03:00]} 5. Nc3 {[%clk 0:03:01]}  Nc6 {[%clk 0:03:01]} 6. Bg5 {[%clk 0:03:01]}  e6 {[%clk 0:03:01]} 7. Qd2 {[%clk 0:03:00]}  h6 {[%clk 0:03:02]} 8. Bxf6 {[%clk 0:02:59]}  gxf6 {[%clk 0:03:03]} 9. O-O-O {[%clk 0:02:54]}  a6 {[%clk 0:03:03]} 10. f4 {[%clk 0:02:54]}  Bd7 {[%clk 0:03:03]} 11. Kb1 {[%clk 0:02:52]}  Qb6 {[%clk 0:03:02]} 12. Nf3 {[%clk 0:02:47]}  O-O-O {[%clk 0:03:01]} 13. Bc4 {[%clk 0:02:47]}  Be7 {[%clk 0:02:58]} 14. a3 {[%clk 0:02:46]}  Kb8 {[%clk 0:02:51]} 15. Rhe1 {[%clk 0:02:40]}  Rc8 {[%clk 0:02:48]} 16. Ba2 {[%clk 0:02:40]}  Na5 {[%clk 0:02:38]} 17. Qd4 {[%clk 0:02:33]}  Qxd4 {[%clk 0:02:32]} 18. Nxd4 {[%clk 0:02:34]}  Nc4 {[%clk 0:02:27]} 19. Rd3 {[%clk 0:02:30]}  Rhg8 {[%clk 0:02:19]} 20. g3 {[%clk 0:02:30]}  b5 {[%clk 0:02:14]} 21. Nf3 {[%clk 0:02:27]}  Rc5 {[%clk 0:01:50]} 22. Ne2 {[%clk 0:02:12]}  Rgc8 {[%clk 0:01:46]} 23. c3 {[%clk 0:02:11]}  Ka7 {[%clk 0:01:26]} 24. Ned4 {[%clk 0:02:10]}  a5 {[%clk 0:01:23]} 25. Nc2 {[%clk 0:02:04]}  Rb8 {[%clk 0:01:05]} 26. Nfd4 {[%clk 0:01:56]}  Kb6 {[%clk 0:00:52]} 27. Kc1 {[%clk 0:01:55]}  Rbc8 {[%clk 0:00:48]} 28. Red1 {[%clk 0:01:53]}  R5c7 {[%clk 0:00:46]} 29. Nf3 {[%clk 0:01:47]}  Bc6 {[%clk 0:00:40]} 30. Re1 {[%clk 0:01:46]}  Bb7 {[%clk 0:00:38]} 31. Rdd1 {[%clk 0:01:30]}  Rc5 {[%clk 0:00:36]} 32. Nfd4 {[%clk 0:01:28]}  R5c7 {[%clk 0:00:34]} 33. Bb3 {[%clk 0:01:18]}  Bf8 {[%clk 0:00:30]} 34. Re2 {[%clk 0:01:17]}  h5 {[%clk 0:00:28]} 35. Kb1 {[%clk 0:01:17]}  d5 {[%clk 0:00:25]} 36. e5 {[%clk 0:01:03]}  fxe5 {[%clk 0:00:20]} 37. fxe5 {[%clk 0:01:03]}  Bg7 {[%clk 0:00:20]} 38. Bxc4 {[%clk 0:01:00]}  dxc4 {[%clk 0:00:19]} 39. Rf1 {[%clk 0:01:00]}  Bd5 {[%clk 0:00:15]} 40. Kc1 {[%clk 0:00:56]}  Rd8 {[%clk 0:00:15]} 41. Nf3 {[%clk 0:00:44]}  Bb7 {[%clk 0:00:13]} 42. Ncd4 {[%clk 0:00:42]}  Rd5 {[%clk 0:00:10]} 43. Ng5 {[%clk 0:00:37]}  Bxe5 {[%clk 0:00:06]} 44. Nxf7 {[%clk 0:00:37]}  Bxd4 {[%clk 0:00:06]} 45. Rxe6+ {[%clk 0:00:37]}  Ka7 {[%clk 0:00:05]} 46. cxd4 {[%clk 0:00:37]}  Rxd4 {[%clk 0:00:05]} 47. Nd6 {[%clk 0:00:37]}  Ba6 {[%clk 0:00:04]} 48. Rf5 {[%clk 0:00:35]}  b4 {[%clk 0:00:04]} 49. Rxa5 {[%clk 0:00:34]}  Kb6 {[%clk 0:00:04]} 50. Nxc4+ {[%clk 0:00:29]}  Kb7 {[%clk 0:00:03]} 51. Rexa6 {[%clk 0:00:26]}  Rcxc4+ {[%clk 0:00:03]} 52. Kb1 {[%clk 0:00:26]}  bxa3 {[%clk 0:00:03]} 53. Rxa3 {[%clk 0:00:26]}  Rd2 {[%clk 0:00:03]} 54. Ra7+ {[%clk 0:00:24]}  Kb6 {[%clk 0:00:04]} 55. R7a4 {[%clk 0:00:19]}  Rcc2 {[%clk 0:00:03]} 56. Rb4+ {[%clk 0:00:18]}  Kc5 {[%clk 0:00:04]} 57. Rb8 {[%clk 0:00:17]}  Rxh2 {[%clk 0:00:01]} 58. Rc8+ {[%clk 0:00:17]}  Kb4 {[%clk 0:00:02]} 59. Rxc2 {[%clk 0:00:17]}  Rh1+ {[%clk 0:00:02]} 60. Ka2 {[%clk 0:00:18]}  Ra1+ {[%clk 0:00:03]} 61. Kxa1 {[%clk 0:00:17]} 1-0


[Site "https://www.chess.com"]

[Event "Titled Tuesday Blitz April 19 Early 2022"]
[White "Xu, Yi"]
[Black "Golubovskis, Maksims"]
[WhiteFideId "8605564"]
[BlackFideId "11608528"]
[WhiteElo "2471"]
[BlackElo "2070"]
[Result "1-0"]
[Round "01"]
[TimeControl "180+1"]
[Date "2022.04.19"]
[WhiteClock "0:00:29"]
[BlackClock "0:00:01"]

1. e4 {[%clk 0:02:58]}  c5 {[%clk 0:02:50]} 2. Nf3 {[%clk 0:02:58]}  d6 {[%clk 0:02:47]} 3. d4 {[%clk 0:02:58]}  cxd4 {[%clk 0:02:48]} 4. Nxd4 {[%clk 0:02:58]}  Nf6 {[%clk 0:02:49]} 5. Nc3 {[%clk 0:02:59]}  a6 {[%clk 0:02:50]} 6. f3 {[%clk 0:02:58]}  e5 {[%clk 0:02:45]} 7. Nb3 {[%clk 0:02:58]}  Be6 {[%clk 0:02:46]} 8. Be3 {[%clk 0:02:58]}  Nbd7 {[%clk 0:02:43]} 9. g4 {[%clk 0:02:57]}  b5 {[%clk 0:02:37]} 10. g5 {[%clk 0:02:55]}  Nh5 {[%clk 0:02:37]} 11. Qd2 {[%clk 0:02:51]}  Be7 {[%clk 0:02:35]} 12. O-O-O {[%clk 0:02:48]}  Rc8 {[%clk 0:02:26]} 13. Kb1 {[%clk 0:02:47]}  Qc7 {[%clk 0:02:20]} 14. Nd5 {[%clk 0:02:43]}  Bxd5 {[%clk 0:02:19]} 15. exd5 {[%clk 0:02:43]}  Nb6 {[%clk 0:02:06]} 16. Na5 {[%clk 0:02:32]}  Nxd5 {[%clk 0:02:00]} 17. Qxd5 {[%clk 0:02:30]}  Qxa5 {[%clk 0:01:59]} 18. Bh3 {[%clk 0:01:53]}  Rc4 {[%clk 0:01:38]} 19. Qa8+ {[%clk 0:01:52]}  Qd8 {[%clk 0:01:38]} 20. Qxa6 {[%clk 0:01:52]}  O-O {[%clk 0:01:26]} 21. Bf1 {[%clk 0:01:36]}  Rc8 {[%clk 0:00:58]} 22. Bb6 {[%clk 0:01:09]}  Qd7 {[%clk 0:00:53]} 23. Bxb5 {[%clk 0:01:08]}  Qf5 {[%clk 0:00:53]} 24. Qb7 {[%clk 0:00:57]}  Qxc2+ {[%clk 0:00:49]} 25. Ka1 {[%clk 0:00:58]}  Bxg5 {[%clk 0:00:49]} 26. Bd3 {[%clk 0:00:55]}  Qc6 {[%clk 0:00:37]} 27. Qxc6 {[%clk 0:00:52]}  Rxc6 {[%clk 0:00:38]} 28. Bf2 {[%clk 0:00:50]}  Rb8 {[%clk 0:00:24]} 29. Ba7 {[%clk 0:00:37]}  Rb4 {[%clk 0:00:20]} 30. a3 {[%clk 0:00:35]}  Rb3 {[%clk 0:00:14]} 31. Ka2 {[%clk 0:00:33]}  Rxd3 {[%clk 0:00:09]} 32. Rxd3 {[%clk 0:00:33]}  f5 {[%clk 0:00:04]} 33. Rhd1 {[%clk 0:00:31]}  Be7 {[%clk 0:00:05]} 34. Rc3 {[%clk 0:00:29]}  Rxc3 {[%clk 0:00:02]} 35. bxc3 {[%clk 0:00:29]}  Nf4 {[%clk 0:00:03]} 36. a4 {[%clk 0:00:29]}  Kf7 {[%clk 0:00:02]} 37. a5 {[%clk 0:00:30]}  Ne6 {[%clk 0:00:01]} 38. Bb6 {[%clk 0:00:29]} 1-0


[Site "https://www.chess.com"]

[Event "Titled Tuesday Blitz April 19 Early 2022"]
[White "Zia, Tahsin Tajwar"]
[Black "Golubovskis, Maksims"]
[WhiteFideId "10211888"]
[BlackFideId "11608528"]
[WhiteElo "1800"]
[BlackElo "2070"]
[Result "1-0"]
[Round "01"]
[TimeControl "180+1"]
[Date "2022.04.19"]
[WhiteClock "0:00:20"]
[BlackClock "0:00:31"]

1. d4 {[%clk 0:02:58]}  Nf6 {[%clk 0:02:59]} 2. c4 {[%clk 0:02:57]}  c5 {[%clk 0:03:00]} 3. Nc3 {[%clk 0:02:58]}  g6 {[%clk 0:02:56]} 4. d5 {[%clk 0:02:53]}  a6 {[%clk 0:02:57]} 5. e4 {[%clk 0:02:50]}  b5 {[%clk 0:02:54]} 6. e5 {[%clk 0:02:43]}  b4 {[%clk 0:02:32]} 7. exf6 {[%clk 0:02:28]}  bxc3 {[%clk 0:02:31]} 8. bxc3 {[%clk 0:02:08]}  e6 {[%clk 0:02:28]} 9. Qf3 {[%clk 0:02:03]}  Bb7 {[%clk 0:02:24]} 10. Bd3 {[%clk 0:02:01]}  d6 {[%clk 0:02:16]} 11. Ne2 {[%clk 0:02:00]}  Nd7 {[%clk 0:02:15]} 12. Bg5 {[%clk 0:01:51]}  h6 {[%clk 0:02:10]} 13. Bh4 {[%clk 0:01:38]}  g5 {[%clk 0:02:07]} 14. Bg3 {[%clk 0:01:38]}  Qxf6 {[%clk 0:02:05]} 15. Qe3 {[%clk 0:01:25]}  Ne5 {[%clk 0:01:53]} 16. O-O {[%clk 0:01:06]}  Nxd3 {[%clk 0:01:50]} 17. Qxd3 {[%clk 0:01:07]}  Be7 {[%clk 0:01:46]} 18. f4 {[%clk 0:01:04]}  g4 {[%clk 0:01:43]} 19. Rae1 {[%clk 0:00:42]}  O-O-O {[%clk 0:01:35]} 20. f5 {[%clk 0:00:34]}  e5 {[%clk 0:01:35]} 21. Qc2 {[%clk 0:00:30]}  h5 {[%clk 0:01:27]} 22. Bf2 {[%clk 0:00:25]}  h4 {[%clk 0:01:25]} 23. Be3 {[%clk 0:00:25]}  g3 {[%clk 0:01:04]} 24. h3 {[%clk 0:00:25]}  Qg7 {[%clk 0:01:04]} 25. Nc1 {[%clk 0:00:22]}  Bg5 {[%clk 0:01:04]} 26. Nb3 {[%clk 0:00:20]}  Bxe3+ {[%clk 0:01:01]} 27. Rxe3 {[%clk 0:00:21]}  Qg5 {[%clk 0:01:02]} 28. Ref3 {[%clk 0:00:20]}  Rd7 {[%clk 0:00:56]} 29. Nd2 {[%clk 0:00:20]}  f6 {[%clk 0:00:49]} 30. Ne4 {[%clk 0:00:20]}  Qg7 {[%clk 0:00:48]} 31. Rb1 {[%clk 0:00:20]}  Rh7 {[%clk 0:00:47]} 32. Qa4 {[%clk 0:00:20]}  Kd8 {[%clk 0:00:46]} 33. Qa5+ {[%clk 0:00:19]}  Ke8 {[%clk 0:00:45]} 34. Qb6 {[%clk 0:00:20]}  Rh8 {[%clk 0:00:41]} 35. Nxd6+ {[%clk 0:00:19]}  Rxd6 {[%clk 0:00:39]} 36. Qxd6 {[%clk 0:00:20]}  Qh7 {[%clk 0:00:33]} 37. Qb8+ {[%clk 0:00:19]}  Kf7 {[%clk 0:00:31]} 38. Rxb7# {[%clk 0:00:20]} 1-0


[Site "https://www.chess.com"]

[Event "Titled Tuesday Blitz April 19 Early 2022"]
[White "Aakanksha Hagawane"]
[Black "Golubovskis, Maksims"]
[WhiteFideId "25014510"]
[BlackFideId "11608528"]
[WhiteElo "1971"]
[BlackElo "2070"]
[Result "1-0"]
[Round "02"]
[TimeControl "180+1"]
[Date "2022.04.19"]
[WhiteClock "0:00:12"]
[BlackClock "0:00:05"]

1. e4 {[%clk 0:03:00]}  c5 {[%clk 0:02:52]} 2. Nf3 {[%clk 0:03:00]}  d6 {[%clk 0:02:52]} 3. Bb5+ {[%clk 0:02:58]}  Nd7 {[%clk 0:02:50]} 4. O-O {[%clk 0:02:57]}  Nf6 {[%clk 0:02:46]} 5. Re1 {[%clk 0:02:57]}  g6 {[%clk 0:01:36]} 6. c3 {[%clk 0:02:24]}  Bg7 {[%clk 0:01:32]} 7. d4 {[%clk 0:02:24]}  cxd4 {[%clk 0:01:23]} 8. cxd4 {[%clk 0:02:23]}  O-O {[%clk 0:01:24]} 9. Nc3 {[%clk 0:02:23]}  a6 {[%clk 0:01:07]} 10. Bd3 {[%clk 0:02:19]}  b5 {[%clk 0:00:50]} 11. a3 {[%clk 0:02:10]}  Bb7 {[%clk 0:00:50]} 12. Bf4 {[%clk 0:02:08]}  Rc8 {[%clk 0:00:48]} 13. Qd2 {[%clk 0:02:06]}  Qb6 {[%clk 0:00:44]} 14. Bh6 {[%clk 0:01:47]}  e5 {[%clk 0:00:39]} 15. Bxg7 {[%clk 0:01:37]}  Kxg7 {[%clk 0:00:37]} 16. d5 {[%clk 0:01:34]}  Rc7 {[%clk 0:00:28]} 17. Rac1 {[%clk 0:01:24]}  Rfc8 {[%clk 0:00:26]} 18. h3 {[%clk 0:01:20]}  Nc5 {[%clk 0:00:25]} 19. Bc2 {[%clk 0:01:18]}  b4 {[%clk 0:00:21]} 20. axb4 {[%clk 0:00:52]}  Qxb4 {[%clk 0:00:22]} 21. Nh4 {[%clk 0:00:37]}  Qxb2 {[%clk 0:00:22]} 22. Qg5 {[%clk 0:00:26]}  Ncd7 {[%clk 0:00:21]} 23. Nf5+ {[%clk 0:00:20]}  Kf8 {[%clk 0:00:21]} 24. Qh6+ {[%clk 0:00:18]}  Ke8 {[%clk 0:00:21]} 25. Nxd6+ {[%clk 0:00:18]}  Kd8 {[%clk 0:00:22]} 26. Nxf7+ {[%clk 0:00:15]}  Ke7 {[%clk 0:00:21]} 27. Qg7 {[%clk 0:00:15]}  Rxc3 {[%clk 0:00:20]} 28. d6+ {[%clk 0:00:15]}  Ke8 {[%clk 0:00:20]} 29. Ng5 {[%clk 0:00:12]}  Qa2 {[%clk 0:00:05]} 30. Qe7# {[%clk 0:00:12]} 1-0


[Site "https://www.chess.com"]

[Event "Titled Tuesday Blitz April 19 Early 2022"]
[White "Agasarov, Benik"]
[Black "Aroesti, Roee"]
[WhiteFideId "13314823"]
[BlackFideId "2817144"]
[WhiteElo "2498"]
[BlackElo "2068"]
[Result "1-0"]
[Round "02"]
[TimeControl "180+1"]
[Date "2022.04.19"]
[WhiteClock "0:00:39"]
[BlackClock "0:00:02"]

1. d4 {[%clk 0:03:00]}  d5 {[%clk 0:02:58]} 2. c4 {[%clk 0:03:00]}  e6 {[%clk 0:02:57]} 3. Nf3 {[%clk 0:03:00]}  Nf6 {[%clk 0:02:57]} 4. g3 {[%clk 0:03:00]}  Be7 {[%clk 0:02:52]} 5. Bg2 {[%clk 0:03:00]}  O-O {[%clk 0:02:51]} 6. O-O {[%clk 0:03:00]}  dxc4 {[%clk 0:02:48]} 7. Qc2 {[%clk 0:02:59]}  a6 {[%clk 0:02:47]} 8. a4 {[%clk 0:02:53]}  Bd7 {[%clk 0:02:45]} 9. Qxc4 {[%clk 0:02:53]}  Bc6 {[%clk 0:02:45]} 10. Bg5 {[%clk 0:02:49]}  Nbd7 {[%clk 0:02:41]} 11. Nc3 {[%clk 0:02:48]}  a5 {[%clk 0:02:37]} 12. Bxf6 {[%clk 0:02:38]}  Nxf6 {[%clk 0:02:34]} 13. Rfd1 {[%clk 0:02:31]}  Nd5 {[%clk 0:02:25]} 14. Ne5 {[%clk 0:02:28]}  Nb6 {[%clk 0:02:08]} 15. Nxc6 {[%clk 0:02:18]}  Nxc4 {[%clk 0:02:04]} 16. Nxd8 {[%clk 0:02:16]}  Rfxd8 {[%clk 0:01:57]} 17. b3 {[%clk 0:02:14]}  Nd6 {[%clk 0:01:53]} 18. e3 {[%clk 0:02:09]}  c6 {[%clk 0:01:50]} 19. Rac1 {[%clk 0:02:07]}  Rd7 {[%clk 0:01:46]} 20. Ne2 {[%clk 0:02:06]}  Rad8 {[%clk 0:01:44]} 21. Nf4 {[%clk 0:02:07]}  Nc8 {[%clk 0:01:33]} 22. Nd3 {[%clk 0:02:06]}  Nb6 {[%clk 0:01:23]} 23. Ne5 {[%clk 0:02:02]}  Rc7 {[%clk 0:01:21]} 24. Bf3 {[%clk 0:01:39]}  Ba3 {[%clk 0:01:17]} 25. Rc2 {[%clk 0:01:38]}  Bb4 {[%clk 0:01:11]} 26. Nd3 {[%clk 0:01:37]}  Be7 {[%clk 0:01:08]} 27. Kg2 {[%clk 0:01:35]}  Nd5 {[%clk 0:01:06]} 28. Bxd5 {[%clk 0:01:32]}  exd5 {[%clk 0:01:01]} 29. Rb1 {[%clk 0:01:29]}  Ra8 {[%clk 0:00:59]} 30. Nf4 {[%clk 0:01:28]}  Bd6 {[%clk 0:00:58]} 31. Nd3 {[%clk 0:01:27]}  Re7 {[%clk 0:00:58]} 32. b4 {[%clk 0:01:20]}  axb4 {[%clk 0:00:56]} 33. Nxb4 {[%clk 0:01:21]}  g6 {[%clk 0:00:42]} 34. Ra2 {[%clk 0:01:16]}  Ra5 {[%clk 0:00:40]} 35. Nd3 {[%clk 0:01:11]}  b5 {[%clk 0:00:19]} 36. Rba1 {[%clk 0:01:10]}  Rea7 {[%clk 0:00:19]} 37. Nb2 {[%clk 0:01:05]}  Bb4 {[%clk 0:00:17]} 38. Rc1 {[%clk 0:01:02]}  R7a6 {[%clk 0:00:17]} 39. Nd3 {[%clk 0:01:01]}  Bf8 {[%clk 0:00:10]} 40. axb5 {[%clk 0:01:01]}  Rxa2 {[%clk 0:00:08]} 41. bxa6 {[%clk 0:01:01]}  Rxa6 {[%clk 0:00:09]} 42. Ne5 {[%clk 0:01:01]}  c5 {[%clk 0:00:04]} 43. dxc5 {[%clk 0:01:00]}  f6 {[%clk 0:00:04]} 44. Nd7 {[%clk 0:01:00]}  Rc6 {[%clk 0:00:02]} 45. Kf3 {[%clk 0:00:55]}  Kf7 {[%clk 0:00:01]} 46. Ke2 {[%clk 0:00:55]}  Be7 {[%clk 0:00:01]} 47. Kd3 {[%clk 0:00:51]}  Ke6 {[%clk 0:00:02]} 48. Nb8 {[%clk 0:00:47]}  Rxc5 {[%clk 0:00:02]} 49. Rb1 {[%clk 0:00:48]}  Rc7 {[%clk 0:00:02]} 50. Rb6+ {[%clk 0:00:47]}  Kf7 {[%clk 0:00:03]} 51. Nc6 {[%clk 0:00:46]}  Rd7 {[%clk 0:00:02]} 52. Kd4 {[%clk 0:00:45]}  Kf8 {[%clk 0:00:02]} 53. Rb8+ {[%clk 0:00:44]}  Kf7 {[%clk 0:00:02]} 54. Rh8 {[%clk 0:00:43]}  Kg7 {[%clk 0:00:02]} 55. Re8 {[%clk 0:00:43]}  Bf8 {[%clk 0:00:03]} 56. Nd8 {[%clk 0:00:41]}  Be7 {[%clk 0:00:02]} 57. Nc6 {[%clk 0:00:39]}  Kf7 {[%clk 0:00:01]} 58. Rxe7+ {[%clk 0:00:39]}  Rxe7 {[%clk 0:00:01]} 59. Nxe7 {[%clk 0:00:40]}  Kxe7 {[%clk 0:00:02]} 60. Kxd5 {[%clk 0:00:41]}  Kd7 {[%clk 0:00:02]} 61. e4 {[%clk 0:00:41]}  Ke7 {[%clk 0:00:02]} 62. f4 {[%clk 0:00:39]} 1-0


[Site "https://www.chess.com"]

[Event "Titled Tuesday Blitz April 19 Early 2022"]
[White "Atakishiyev, Elmar"]
[Black "Sanchez, Robert"]
[WhiteFideId "13410547"]
[BlackFideId "2034360"]
[WhiteElo "2087"]
[BlackElo "2384"]
[Result "1-0"]
[Round "02"]
[TimeControl "180+1"]
[Date "2022.04.19"]
[WhiteClock "0:01:01"]
[BlackClock "0:00:15"]

1. c4 {[%clk 0:03:00]}  c6 {[%clk 0:02:59]} 2. g3 {[%clk 0:02:59]}  Nf6 {[%clk 0:02:59]} 3. Bg2 {[%clk 0:02:59]}  e5 {[%clk 0:02:59]} 4. e3 {[%clk 0:02:56]}  d5 {[%clk 0:02:58]} 5. Ne2 {[%clk 0:02:54]}  Bd6 {[%clk 0:02:53]} 6. O-O {[%clk 0:02:53]}  O-O {[%clk 0:02:53]} 7. d4 {[%clk 0:02:52]}  e4 {[%clk 0:02:53]} 8. Nbc3 {[%clk 0:02:50]}  a6 {[%clk 0:02:48]} 9. Qb3 {[%clk 0:02:49]}  Bc7 {[%clk 0:02:42]} 10. a4 {[%clk 0:02:48]}  h5 {[%clk 0:02:23]} 11. f3 {[%clk 0:02:34]}  exf3 {[%clk 0:02:04]} 12. Bxf3 {[%clk 0:02:33]}  dxc4 {[%clk 0:02:04]} 13. Qxc4 {[%clk 0:02:32]}  b5 {[%clk 0:01:53]} 14. Qd3 {[%clk 0:02:26]}  b4 {[%clk 0:01:51]} 15. Ne4 {[%clk 0:02:25]}  Nd5 {[%clk 0:01:44]} 16. Nf4 {[%clk 0:02:23]}  Nxf4 {[%clk 0:01:41]} 17. gxf4 {[%clk 0:02:21]}  a5 {[%clk 0:01:38]} 18. Ng5 {[%clk 0:02:18]}  g6 {[%clk 0:01:35]} 19. Be4 {[%clk 0:02:08]}  Ba6 {[%clk 0:01:34]} 20. Qb3 {[%clk 0:01:58]}  Bxf1 {[%clk 0:01:33]} 21. Bxg6 {[%clk 0:01:58]}  Qd5 {[%clk 0:01:14]} 22. Bh7+ {[%clk 0:01:44]}  Kg7 {[%clk 0:01:04]} 23. Qc2 {[%clk 0:01:16]}  Ba6 {[%clk 0:00:34]} 24. Be4 {[%clk 0:01:14]}  Qc4 {[%clk 0:00:31]} 25. Qg2 {[%clk 0:01:09]}  Kh6 {[%clk 0:00:14]} 26. Nxf7+ {[%clk 0:01:02]}  Qxf7 {[%clk 0:00:15]} 27. Qg5# {[%clk 0:01:01]} 1-0


[Site "https://www.chess.com"]

[Event "Titled Tuesday Blitz April 19 Early 2022"]
[White "Babazada, Khazar"]
[Black "Ambartsumova, Karina"]
[WhiteFideId "13413554"]
[BlackFideId "4166299"]
[WhiteElo "2406"]
[BlackElo "2262"]
[Result "1-0"]
[Round "02"]
[TimeControl "180+1"]
[Date "2022.04.19"]
[WhiteClock "0:00:45"]
[BlackClock "0:01:12"]

1. e4 {[%clk 0:03:00]}  e5 {[%clk 0:02:59]} 2. Nf3 {[%clk 0:03:01]}  Nc6 {[%clk 0:02:59]} 3. Bb5 {[%clk 0:03:00]}  a6 {[%clk 0:02:59]} 4. Ba4 {[%clk 0:03:00]}  Nf6 {[%clk 0:02:59]} 5. O-O {[%clk 0:03:00]}  Be7 {[%clk 0:03:00]} 6. Re1 {[%clk 0:02:59]}  b5 {[%clk 0:03:00]} 7. Bb3 {[%clk 0:02:59]}  O-O {[%clk 0:03:00]} 8. c3 {[%clk 0:02:59]}  d5 {[%clk 0:02:59]} 9. exd5 {[%clk 0:02:59]}  Nxd5 {[%clk 0:03:00]} 10. Nxe5 {[%clk 0:02:58]}  Nxe5 {[%clk 0:03:01]} 11. Rxe5 {[%clk 0:02:58]}  c6 {[%clk 0:03:01]} 12. Bxd5 {[%clk 0:02:39]}  cxd5 {[%clk 0:03:00]} 13. d4 {[%clk 0:02:37]}  Bd6 {[%clk 0:03:00]} 14. Re1 {[%clk 0:02:32]}  Qh4 {[%clk 0:02:58]} 15. g3 {[%clk 0:02:33]}  Qh3 {[%clk 0:02:55]} 16. Qf3 {[%clk 0:02:32]}  Bg4 {[%clk 0:02:50]} 17. Qg2 {[%clk 0:02:32]}  Qh5 {[%clk 0:02:49]} 18. h4 {[%clk 0:02:00]}  Bf3 {[%clk 0:02:31]} 19. Qh3 {[%clk 0:01:59]}  f5 {[%clk 0:02:31]} 20. Be3 {[%clk 0:01:03]}  Bg4 {[%clk 0:02:25]} 21. Qg2 {[%clk 0:00:59]}  f4 {[%clk 0:02:26]} 22. Bxf4 {[%clk 0:00:59]}  Rxf4 {[%clk 0:01:58]} 23. gxf4 {[%clk 0:01:00]}  Bxf4 {[%clk 0:01:59]} 24. Nd2 {[%clk 0:00:44]}  Bxd2 {[%clk 0:01:51]} 25. Re5 {[%clk 0:00:45]}  Qxh4 {[%clk 0:01:46]} 26. Qxd5+ {[%clk 0:00:44]}  Be6 {[%clk 0:01:12]} 27. Qxe6+ {[%clk 0:00:44]}  Kf8 {[%clk 0:01:12]} 28. Rf5+ {[%clk 0:00:45]} 1-0


[Site "https://www.chess.com"]

[Event "Titled Tuesday Blitz April 19 Early 2022"]
[White "Bach, Ngoc Thuy Duong"]
[Black "Marin Masis, Jose Esteban"]
[WhiteFideId "12408956"]
[BlackFideId "6508146"]
[WhiteElo "1862"]
[BlackElo "1710"]
[Result "1-0"]
[Round "02"]
[TimeControl "180+1"]
[Date "2022.04.19"]
[WhiteClock "0:00:10"]
[BlackClock "0:00:08"]

1. d4 {[%clk 0:03:00]}  Nf6 {[%clk 0:02:59]} 2. c4 {[%clk 0:02:52]}  e6 {[%clk 0:02:58]} 3. Nc3 {[%clk 0:02:51]}  Bb4 {[%clk 0:02:44]} 4. Qc2 {[%clk 0:02:50]}  d5 {[%clk 0:02:41]} 5. cxd5 {[%clk 0:02:49]}  Qxd5 {[%clk 0:02:39]} 6. Nf3 {[%clk 0:02:47]}  Qf5 {[%clk 0:02:39]} 7. Qxf5 {[%clk 0:02:25]}  exf5 {[%clk 0:02:40]} 8. a3 {[%clk 0:02:23]}  Be7 {[%clk 0:02:36]} 9. Bf4 {[%clk 0:02:21]}  c6 {[%clk 0:02:30]} 10. e3 {[%clk 0:02:21]}  Nbd7 {[%clk 0:02:06]} 11. Bd3 {[%clk 0:02:19]}  Nb6 {[%clk 0:01:47]} 12. Be5 {[%clk 0:02:15]}  O-O {[%clk 0:01:44]} 13. O-O {[%clk 0:02:15]}  h6 {[%clk 0:01:40]} 14. b4 {[%clk 0:02:03]}  Nfd5 {[%clk 0:01:29]} 15. Nxd5 {[%clk 0:01:49]}  Nxd5 {[%clk 0:01:30]} 16. Rfc1 {[%clk 0:01:47]}  Be6 {[%clk 0:01:19]} 17. h3 {[%clk 0:01:42]}  Rfc8 {[%clk 0:01:13]} 18. Rab1 {[%clk 0:01:33]}  a5 {[%clk 0:01:08]} 19. bxa5 {[%clk 0:01:18]}  Bxa3 {[%clk 0:00:53]} 20. a6 {[%clk 0:00:45]}  bxa6 {[%clk 0:00:41]} 21. Rf1 {[%clk 0:00:35]}  a5 {[%clk 0:00:19]} 22. Nd2 {[%clk 0:00:31]}  Nb4 {[%clk 0:00:16]} 23. Bc4 {[%clk 0:00:30]}  Nd5 {[%clk 0:00:12]} 24. Nb3 {[%clk 0:00:17]}  Bb4 {[%clk 0:00:12]} 25. Nc5 {[%clk 0:00:15]}  Nc3 {[%clk 0:00:11]} 26. Bxe6 {[%clk 0:00:14]}  fxe6 {[%clk 0:00:11]} 27. Rb3 {[%clk 0:00:13]}  Ne2+ {[%clk 0:00:11]} 28. Kh2 {[%clk 0:00:12]}  Re8 {[%clk 0:00:12]} 29. Ra1 {[%clk 0:00:12]}  Nc3 {[%clk 0:00:12]} 30. Nb7 {[%clk 0:00:10]}  Nd5 {[%clk 0:00:12]} 31. Nc5 {[%clk 0:00:10]}  a4 {[%clk 0:00:12]} 32. Rxa4 {[%clk 0:00:09]}  Rxa4 {[%clk 0:00:10]} 33. Nxa4 {[%clk 0:00:10]}  Be1 {[%clk 0:00:11]} 34. Kg1 {[%clk 0:00:09]}  Rc8 {[%clk 0:00:11]} 35. Nc5 {[%clk 0:00:09]}  Bd2 {[%clk 0:00:10]} 36. Rb7 {[%clk 0:00:09]}  Bb4 {[%clk 0:00:08]} 37. Kf1 {[%clk 0:00:09]}  Bxc5 {[%clk 0:00:09]} 38. dxc5 {[%clk 0:00:10]}  Re8 {[%clk 0:00:09]} 39. Rxg7+ {[%clk 0:00:10]}  Kf8 {[%clk 0:00:09]} 40. Rh7 {[%clk 0:00:11]}  Nb4 {[%clk 0:00:10]} 41. Rh8+ {[%clk 0:00:11]}  Kf7 {[%clk 0:00:10]} 42. Rxh6 {[%clk 0:00:10]}  Nd3 {[%clk 0:00:09]} 43. Bd6 {[%clk 0:00:10]}  Rg8 {[%clk 0:00:09]} 44. Rh7+ {[%clk 0:00:10]}  Ke8 {[%clk 0:00:09]} 45. Re7+ {[%clk 0:00:10]}  Kd8 {[%clk 0:00:08]} 46. Ra7 {[%clk 0:00:10]}  Nb4 {[%clk 0:00:08]} 47. Ra8+ {[%clk 0:00:10]} 1-0


[Site "https://www.chess.com"]